[Event "Niedersachsen-ch 2020"]
[Site "Verden-Aller"]
[Date "2020.01.05"]
[Round "7.4"]
[White "Schulze, Torben"]
[Black "Renner, Kai"]
[Result "1-0"]
[ECO "C02"]
[WhiteElo "2266"]
[BlackElo "2180"]
[Annotator "NA"]
[PlyCount "117"]
[EventDate "2020.01.02"]
[EventType "swiss"]
[EventCountry "GER"]
[SourceTitle "playchess.com"]
[Source "ChessBase"]
[SourceQuality "1"]
[TimeControl "40/5400+30:1800+30"]

1. e4 c5 {[%emt 0:00:00]} 2. Nf3 {[%emt 0:01:46]} e6 {[%emt 0:00:14]} 3. c3 {[%emt 0:00:09]} d5 {[%emt 0:00:50]} 4. e5 {[%emt 0:00:04]} Nc6 {[%emt 0:00:34]} 5. d4 {[%emt 0:00:07]} Bd7 {[%emt 0:01:32]} 6. Be2 {[%emt 0:00:50]} f6 {[%emt 0:04:41]} 7. O-O {[%emt 0:00:37]} fxe5 {[%emt 0:02:38]} 8. Nxe5 {[%emt 0:00:03]} Nxe5 {[%emt 0:00:12]} 9. dxe5 {[%emt 0:00:02]} Ne7 {[%emt 0:04:46]} 10. Bd3 $11 {[%emt 0:04:36]} Qc7 {[%emt 0:03:01]} 11. Qh5+ {[%emt 0:03:41]} g6 {[%emt 0:02:35]} 12. Qe2 {[%emt 0:00:08]} Bg7 {[%emt 0:05:13]} 13. f4 {[%emt 0:01:59]} O-O-O {[%emt 0:04:32]} 14. Nd2 {[%emt 0:01:24]} Nc6 {[%emt 0:05:35]} 15. Nf3 {[%emt 0:02:30]} Bf8 {[%emt 0:07:04]} 16. Rb1 {[%emt 0:11:48]} c4 {[%emt 0:05:16]} 17. Bc2 {[%emt 0:00:10]} Bc5+ {[%emt 0:03:07]} 18. Kh1 {[%emt 0:02:45]} Ne7 {[%emt 0:06:33]} 19. Be3 {[%emt 0:06:37]} Kb8 {[%emt 0:08:35]} 20. Rfd1 {[%emt 0:06:44]} Rdf8 {[%emt 0:01:12]} 21. Qf2 {[%emt 0:03:14]} b6 {[%emt 0:03:10]} 22. b4 {[%emt 0:08:56]} cxb3 {[%emt 0:01:17]} 23. Bxb3 {[%emt 0:00:09]} Ka8 {[%emt 0:06:17]} 24. Qe2 {[%emt 0:06:57]} Bxe3 {[%emt 0:07:35]} 25. Qxe3 {[%emt 0:00:02]} Nf5 {[%emt 0:00:25]} 26. Qd3 {[%emt 0:01:56]} Rc8 {[%emt 0:03:02]} 27. c4 {[%emt 0:18:59]} dxc4 {[%emt 0:01:30]} 28. Qxd7 {[%emt 0:00:57]} Qxd7 {[%emt 0:04:45]} 29. Rxd7 {[%emt 0:00:02]} cxb3 {[%emt 0:00:09]} 30. axb3 {[%emt 0:00:05]} Rhd8 {[%emt 0:04:52]} 31. Rxh7 {[%emt 0:01:34]} Nd4 {[%emt 0:03:43]} 32. Ng5 {[%emt 0:00:14]} Nxb3 {[%emt 0:00:16]} 33. Nxe6 {[%emt 0:00:29]} Rd3 {[%emt 0:00:26]} 34. Rg7 {[%emt 0:03:16]} a5 {[%emt 0:00:05]} 35. Rxg6 {[%emt 0:02:41]} a4 {[%emt 0:00:07]} 36. Rg3 {[%emt 0:01:13]} Rdc3 {[%emt 0:00:07]} 37. Kg1 {[%emt 0:03:33]} Rxg3 {[%emt 0:01:24]} 38. hxg3 {[%emt 0:00:02]} Rc1+ {[%emt 0:01:02]} 39. Rxc1 {[%emt 0:00:01]} Nxc1 {[%emt 0:00:06]} 40. Nd4 {[%emt 0:05:24]} Kb7 {[%emt 0:01:01]} 41. e6 {[%emt 0:06:08]} Kc7 {[%emt 0:00:56]} 42. f5 {[%emt 0:01:27]} Kd6 {[%emt 0:01:48]} 43. f6 {[%emt 0:06:55]} Ne2+ {[%emt 0:00:50]} 44. Nxe2 {[%emt 0:00:01]} Kxe6 {[%emt 0:00:08]} 45. Nc3 {[%emt 0:00:09]} a3 {[%emt 0:00:27]} 46. g4 {[%emt 0:00:36]} Kxf6 {[%emt 0:01:55]} 47. Kf2 {[%emt 0:00:37]} b5 {[%emt 0:00:20]} 48. Na2 {[%emt 0:00:07]} Kg6 {[%emt 0:01:27]} 49. Kf3 {[%emt 0:01:16]} Kg5 {[%emt 0:00:12]} 50. g3 {[%emt 0:00:07]} Kg6 {[%emt 0:00:05]} 51. Kf4 {[%emt 0:00:04]} Kf6 {[%emt 0:00:04]} 52. g5+ {[%emt 0:00:06]} Kg6 {[%emt 0:00:13]} 53. Kg4 {[%emt 0:00:02]} Kg7 {[%emt 0:00:06]} 54. Kf5 {[%emt 0:00:02]} Kf7 {[%emt 0:00:06]} 55. g6+ {[%emt 0:00:07]} Kg7 {[%emt 0:00:04]} 56. Kg5 {[%emt 0:00:04]} Kg8 {[%emt 0:00:04]} 57. Kh6 {[%emt 0:00:15]} Kh8 {[%emt 0:00:04]} 58. g7+ {[%emt 0:00:11]} Kg8 {[%emt 0:00:07]} 59. Nb4 {[%emt 0:00:04]} 1-0

[Event "Niedersachsen-ch 2020"]
[Site "Verden-Aller"]
[Date "2020.01.05"]
[Round "7.5"]
[White "Ermel, Dirk"]
[Black "Pubantz, Jan"]
[Result "0-1"]
[ECO "D00"]
[WhiteElo "2125"]
[BlackElo "2233"]
[Annotator "NA"]
[PlyCount "50"]
[EventDate "2020.01.02"]
[EventType "swiss"]
[EventCountry "GER"]
[SourceTitle "playchess.com"]
[Source "ChessBase"]
[SourceQuality "1"]
[TimeControl "40/5400+30:1800+30"]

1. d4 {[%emt 0:00:09]} d5 {[%emt 0:00:52]} 2. Bf4 {[%emt 0:00:18]} Nf6 {[%emt 0:00:48]} 3. e3 {[%emt 0:00:20]} c5 {[%emt 0:00:34]} 4. c3 {[%emt 0:00:21]} Nc6 {[%emt 0:00:14]} 5. Nf3 {[%emt 0:00:56]} Qb6 {[%emt 0:05:08]} 6. Qb3 {[%emt 0:06:41]} c4 $11 {[%emt 0:00:12]} 7. Qxb6 {[%emt 0:09:40]} axb6 {[%emt 0:00:02]} 8. Na3 {[%emt 0:00:41]} Na7 {[%emt 0:03:40]} 9. Be2 {[%emt 0:08:13]} Bf5 {[%emt 0:03:40]} 10. Ne5 {[%emt 0:10:44]} h5 {[%emt 0:20:45]} 11. Rc1 {[%emt 0:09:32]} b5 {[%emt 0:05:51]} 12. Nc2 {[%emt 0:00:45]} Nc8 {[%emt 0:03:24]} 13. Nb4 {[%emt 0:04:54]} e6 {[%emt 0:07:44]} 14. a3 {[%emt 0:00:13]} Nb6 {[%emt 0:03:06]} 15. Bd1 {[%emt 0:00:17]} Ne4 {[%emt 0:10:38]} 16. f3 {[%emt 0:16:51]} Nd6 {[%emt 0:00:19]} 17. Bc2 {[%emt 0:02:11]} Na4 {[%emt 0:11:42]} 18. Bxf5 {[%emt 0:01:55]} Nxf5 {[%emt 0:00:15]} 19. Rc2 {[%emt 0:00:21]} Be7 {[%emt 0:04:19]} 20. Kd2 {[%emt 0:12:18]} g5 {[%emt 0:02:12]} 21. Bg3 {[%emt 0:00:13]} Bxb4 {[%emt 0:01:16]} 22. Nxf7 {[%emt 0:04:58]} Kxf7 {[%emt 0:01:12]} 23. cxb4 {[%emt 0:00:49]} Nxg3 {[%emt 0:00:34]} 24. hxg3 {[%emt 0:00:02]} Kg6 {[%emt 0:00:45]} 25. Kc1 {[%emt 0:01:10]} Rhc8 {[%emt 0:00:43]} 0-1

[Event "Niedersachsen-ch 2020"]
[Site "Verden-Aller"]
[Date "2020.01.05"]
[Round "7.6"]
[White "Knuedel, Torben"]
[Black "Stelmaszyk, Nico"]
[Result "0-1"]
[ECO "B33"]
[WhiteElo "2185"]
[BlackElo "2203"]
[Annotator "NA"]
[PlyCount "78"]
[EventDate "2020.01.02"]
[EventType "swiss"]
[EventCountry "GER"]
[SourceTitle "playchess.com"]
[Source "ChessBase"]
[SourceQuality "1"]
[TimeControl "40/5400+30:1800+30"]

1. e4 {[%emt 0:00:00]} c5 {[%emt 0:00:00]} 2. Nf3 {[%emt 0:00:00]} e6 {[%emt 0:00:00]} 3. d4 {[%emt 0:00:00]} cxd4 {[%emt 0:00:00]} 4. Nxd4 {[%emt 0:00:00]} Nc6 {[%emt 0:00:00]} 5. Nc3 {[%emt 0:00:05]} Nf6 {[%emt 0:00:00]} 6. Ndb5 {[%emt 0:00:06]} d6 {[%emt 0:00:06]} 7. Bf4 {[%emt 0:00:10]} e5 {[%emt 0:00:05]} 8. Bg5 {[%emt 0:00:03]} a6 {[%emt 0:00:04]} 9. Na3 {[%emt 0:01:07]} b5 {[%emt 0:00:07]} 10. Bxf6 {[%emt 0:00:12]} gxf6 {[%emt 0:00:04]} 11. Nd5 {[%emt 0:00:08]} Bg7 {[%emt 0:00:06]} 12. c3 {[%emt 0:00:15]} f5 {[%emt 0:00:04]} 13. Bd3 {[%emt 0:00:09]} Be6 {[%emt 0:00:37]} 14. Nxb5 {[%emt 0:00:14]} axb5 {[%emt 0:00:08]} 15. Bxb5 {[%emt 0:00:05]} Bd7 {[%emt 0:00:04]} 16. exf5 {[%emt 0:00:07]} O-O {[%emt 0:00:10]} 17. O-O {[%emt 0:00:35]} Re8 {[%emt 0:00:05]} 18. a4 {[%emt 0:00:53]} e4 {[%emt 0:00:04]} 19. Qg4 {[%emt 0:07:13]} Kh8 {[%emt 0:04:47]} 20. Rad1 $14 {[%emt 0:07:39]} Re5 {[%emt 0:04:42]} 21. Ne3 {[%emt 0:02:29]} Qe7 {[%emt 0:04:22]} 22. Rd5 {[%emt 0:38:48]} Rxd5 {[%emt 0:03:18]} 23. Nxd5 {[%emt 0:00:17]} Qe5 {[%emt 0:00:56]} 24. Nb6 {[%emt 0:08:13]} Bxf5 {[%emt 0:04:41]} 25. Qh5 {[%emt 0:01:52]} Rb8 {[%emt 0:02:59]} 26. Nc4 {[%emt 0:01:11]} Qe6 {[%emt 0:03:05]} 27. Nxd6 {[%emt 0:05:16]} Bg6 {[%emt 0:01:57]} 28. Qc5 {[%emt 0:02:32]} Ne5 {[%emt 0:00:18]} 29. Qc7 {[%emt 0:01:49]} Rg8 {[%emt 0:00:44]} 30. a5 {[%emt 0:06:47]} Nf3+ {[%emt 0:01:52]} 31. Kh1 {[%emt 0:01:49]} Be5 {[%emt 0:00:12]} 32. Rd1 {[%emt 0:03:42]} Bh5 {[%emt 0:07:59]} 33. Qd7 {[%emt 0:05:37]} Nh4 {[%emt 0:19:26]} 34. Nxf7+ {[%emt 0:03:46]} Qxf7 {[%emt 0:00:38]} 35. Qxf7 {[%emt 0:00:08]} Bxf7 {[%emt 0:00:04]} 36. Rd7 {[%emt 0:02:35]} Rxg2 {[%emt 0:01:15]} 37. a6 {[%emt 0:02:01]} Rxh2+ {[%emt 0:00:24]} 38. Kg1 {[%emt 0:00:03]} Nf3+ {[%emt 0:00:23]} 39. Kf1 {[%emt 0:00:13]} Rh1+ {[%emt 0:00:11]} 0-1

[Event "Niedersachsen-ch 2020"]
[Site "Verden-Aller"]
[Date "2020.01.05"]
[Round "7.7"]
[White "Hartogh, Christian"]
[Black "Stotyn, Fabian"]
[Result "0-1"]
[ECO "B30"]
[WhiteElo "2075"]
[BlackElo "2198"]
[Annotator "NA"]
[PlyCount "134"]
[EventDate "2020.01.02"]
[EventType "swiss"]
[EventCountry "GER"]
[SourceTitle "playchess.com"]
[Source "ChessBase"]
[SourceQuality "1"]
[TimeControl "40/5400+30:1800+30"]

1. e4 {[%emt 0:00:00]} c5 {[%emt 0:00:00]} 2. Nf3 {[%emt 0:00:00]} Nc6 {[%emt 0:00:00]} 3. c3 {[%emt 0:00:02]} d5 {[%emt 0:00:00]} 4. exd5 {[%emt 0:00:05]} Qxd5 {[%emt 0:00:00]} 5. d4 {[%emt 0:00:06]} e5 {[%emt 0:00:32]} 6. dxe5 {[%emt 0:01:16]} Qxd1+ {[%emt 0:01:12]} 7. Kxd1 {[%emt 0:00:09]} Bg4 {[%emt 0:00:06]} 8. Ke1 {[%emt 0:09:11]} Bxf3 {[%emt 0:01:53]} 9. gxf3 {[%emt 0:00:13]} Nxe5 {[%emt 0:00:21]} 10. Bb5+ {[%emt 0:00:19]} Kd8 {[%emt 0:01:39]} 11. Bf4 {[%emt 0:12:19]} Bd6 {[%emt 0:01:39]} 12. Ke2 {[%emt 0:02:55]} a6 {[%emt 0:02:34]} 13. Rd1 {[%emt 0:00:13]} Kc7 {[%emt 0:01:17]} 14. Bxe5 {[%emt 0:11:49]} Bxe5 {[%emt 0:01:07]} 15. Rd7+ {[%emt 0:03:25]} Kb6 {[%emt 0:02:51]} 16. Bc4 {[%emt 0:01:39]} Kc6 {[%emt 0:06:57]} 17. Rd3 {[%emt 0:10:05]} Nh6 {[%emt 0:02:04]} 18. Bd5+ {[%emt 0:03:04]} Kc7 $11 {[%emt 0:01:34]} 19. h3 {[%emt 0:03:52]} Rhe8 {[%emt 0:02:23]} 20. Kf1 {[%emt 0:00:18]} Rad8 {[%emt 0:01:45]} 21. Nd2 {[%emt 0:02:11]} Bf4 {[%emt 0:15:16]} 22. Rd1 {[%emt 0:02:21]} Bxd2 {[%emt 0:00:40]} 23. R1xd2 {[%emt 0:00:43]} Re7 {[%emt 0:01:00]} 24. Re3 {[%emt 0:06:00]} Nf5 {[%emt 0:04:39]} 25. Red3 {[%emt 0:02:44]} Nh4 {[%emt 0:01:30]} 26. Be4 {[%emt 0:03:24]} Rxd3 {[%emt 0:02:04]} 27. Rxd3 {[%emt 0:00:07]} f5 {[%emt 0:01:19]} 28. Bd5 {[%emt 0:00:07]} b6 {[%emt 0:00:30]} 29. Re3 {[%emt 0:02:47]} Ng6 {[%emt 0:02:04]} 30. Be6 {[%emt 0:04:00]} f4 {[%emt 0:02:38]} 31. Re4 {[%emt 0:00:36]} Kd6 {[%emt 0:01:22]} 32. Bc4 {[%emt 0:04:00]} b5 {[%emt 0:01:47]} 33. Be2 {[%emt 0:00:46]} Rxe4 {[%emt 0:02:55]} 34. fxe4 {[%emt 0:00:03]} Ne5 {[%emt 0:01:10]} 35. f3 {[%emt 0:00:46]} a5 {[%emt 0:03:03]} 36. Kg2 {[%emt 0:09:08]} b4 {[%emt 0:01:44]} 37. h4 {[%emt 0:01:06]} Ke6 {[%emt 0:00:59]} 38. Bb5 {[%emt 0:01:42]} Kf6 {[%emt 0:01:41]} 39. a4 {[%emt 0:01:39]} Kg6 {[%emt 0:00:58]} 40. cxb4 {[%emt 0:00:40]} cxb4 {[%emt 0:00:08]} 41. Be8+ {[%emt 0:32:34]} Kh6 {[%emt 0:31:00]} 42. Kh3 {[%emt 0:00:00]} g6 {[%emt 0:00:00]} 43. Bb5 {[%emt 0:00:00]} Kg7 {[%emt 0:00:00]} 44. Be2 {[%emt 0:00:00]} Kf6 {[%emt 0:00:00]} 45. Ba6 {[%emt 0:00:00]} h6 {[%emt 0:00:00]} 46. Kg2 {[%emt 0:00:00]} Ke7 {[%emt 0:00:00]} 47. Be2 {[%emt 0:00:00]} Kd6 {[%emt 0:00:00]} 48. Kf2 {[%emt 0:00:00]} Kc5 {[%emt 0:00:00]} 49. Ke1 {[%emt 0:00:00]} Kd4 {[%emt 0:00:00]} 50. Kd2 {[%emt 0:00:00]} g5 {[%emt 0:00:00]} 51. hxg5 {[%emt 0:00:00]} hxg5 {[%emt 0:00:00]} 52. b3 {[%emt 0:00:00]} g4 {[%emt 0:00:00]} 53. fxg4 {[%emt 0:00:00]} Kxe4 {[%emt 0:00:00]} 54. Bd1 {[%emt 0:00:00]} Kd5 {[%emt 0:00:00]} 55. g5 {[%emt 0:00:00]} Ke6 {[%emt 0:00:00]} 56. g6 {[%emt 0:00:00]} Kf6 {[%emt 0:00:00]} 57. Bc2 {[%emt 0:00:00]} Nf3+ {[%emt 0:00:00]} 58. Kd1 {[%emt 0:00:00]} Nd4 {[%emt 0:00:00]} 59. Be4 {[%emt 0:00:00]} Nxb3 {[%emt 0:00:00]} 60. Ke2 {[%emt 0:00:00]} Nc5 {[%emt 0:00:00]} 61. Bf5 {[%emt 0:00:00]} Ne6 {[%emt 0:00:00]} 62. Be4 {[%emt 0:00:05]} Nf8 {[%emt 0:00:00]} 63. Kd3 {[%emt 0:00:22]} Nxg6 {[%emt 0:00:00]} 64. Kc4 {[%emt 0:00:09]} Ne5+ {[%emt 0:00:11]} 65. Kb5 {[%emt 0:01:13]} f3 {[%emt 0:00:12]} 66. Kxa5 {[%emt 0:01:08]} f2 {[%emt 0:00:07]} 67. Bg2 {[%emt 0:00:59]} b3 {[%emt 0:00:10]} 0-1

[Event "Niedersachsen-ch 2020"]
[Site "Verden-Aller"]
[Date "2020.01.05"]
[Round "7.8"]
[White "Ewert, Hannes"]
[Black "Gentemann, Moritz"]
[Result "1/2-1/2"]
[ECO "A06"]
[WhiteElo "2256"]
[BlackElo "2185"]
[Annotator "NA"]
[PlyCount "91"]
[EventDate "2020.01.02"]
[EventType "swiss"]
[EventCountry "GER"]
[SourceTitle "playchess.com"]
[Source "ChessBase"]
[SourceQuality "1"]
[TimeControl "40/5400+30:1800+30"]

1. Nf3 {[%emt 0:00:00]} d5 {[%emt 0:00:00]} 2. g3 {[%emt 0:00:00]} g6 {[%emt 0:00:06]} 3. Bg2 {[%emt 0:00:00]} Bg7 {[%emt 0:00:09]} 4. O-O {[%emt 0:00:08]} e5 {[%emt 0:00:32]} 5. d3 {[%emt 0:00:33]} Ne7 {[%emt 0:00:35]} 6. c4 {[%emt 0:00:18]} dxc4 {[%emt 0:06:18]} 7. Qa4+ {[%emt 0:01:00]} Nbc6 {[%emt 0:00:15]} 8. Qxc4 {[%emt 0:00:44]} O-O {[%emt 0:00:20]} 9. Nc3 {[%emt 0:04:33]} h6 {[%emt 0:04:42]} 10. Bd2 {[%emt 0:07:21]} Nd4 {[%emt 0:07:01]} 11. Rac1 {[%emt 0:09:26]} c6 {[%emt 0:04:25]} 12. Rfe1 $15 {[%emt 0:11:10]} Bg4 {[%emt 0:14:09]} 13. Nxd4 {[%emt 0:13:25]} exd4 {[%emt 0:00:21]} 14. Nb1 {[%emt 0:01:45]} Be6 {[%emt 0:02:37]} 15. Qa4 {[%emt 0:00:55]} Bd5 {[%emt 0:03:37]} 16. Bb4 {[%emt 0:05:53]} Bxg2 {[%emt 0:02:00]} 17. Bxe7 {[%emt 0:02:45]} Qxe7 {[%emt 0:00:33]} 18. Kxg2 {[%emt 0:00:05]} Rfe8 {[%emt 0:02:01]} 19. Nd2 {[%emt 0:00:50]} a6 {[%emt 0:16:06]} 20. a3 {[%emt 0:02:01]} Rad8 {[%emt 0:00:49]} 21. Nf3 {[%emt 0:01:07]} Rd5 {[%emt 0:03:50]} 22. Rc2 {[%emt 0:05:00]} h5 {[%emt 0:00:59]} 23. h4 {[%emt 0:11:32]} Qd7 {[%emt 0:04:17]} 24. b4 {[%emt 0:03:19]} f5 {[%emt 0:07:39]} 25. Qb3 {[%emt 0:01:06]} Kh8 {[%emt 0:00:37]} 26. Rc5 {[%emt 0:01:25]} Rd6 {[%emt 0:03:16]} 27. Ng5 {[%emt 0:05:15]} Re7 {[%emt 0:00:44]} 28. f4 {[%emt 0:00:43]} Bf6 {[%emt 0:00:24]} 29. Nf3 {[%emt 0:00:18]} Rde6 {[%emt 0:01:41]} 30. Qc2 {[%emt 0:01:21]} Re8 {[%emt 0:07:55]} 31. Kf2 {[%emt 0:01:11]} Qe7 {[%emt 0:04:07]} 32. Rc4 {[%emt 0:01:52]} Rd6 {[%emt 0:00:25]} 33. Qd2 {[%emt 0:00:40]} Rd5 {[%emt 0:00:26]} 34. Rec1 {[%emt 0:00:56]} Kg7 {[%emt 0:00:58]} 35. R1c2 {[%emt 0:01:07]} Red8 {[%emt 0:00:36]} 36. Rc5 {[%emt 0:01:46]} Qe6 {[%emt 0:00:48]} 37. R5c4 {[%emt 0:01:21]} Ra8 {[%emt 0:00:52]} 38. a4 {[%emt 0:02:08]} Rad8 {[%emt 0:00:14]} 39. Qc1 {[%emt 0:01:02]} R8d7 {[%emt 0:00:28]} 40. Kf1 {[%emt 0:02:14]} Re7 {[%emt 0:02:11]} 41. Rb2 {[%emt 0:02:01]} Kh7 {[%emt 0:02:20]} 42. Rc5 {[%emt 0:03:35]} Qd6 {[%emt 0:10:50]} 43. Qc4 Rd7 {[%emt 0:01:17]} 44. Rc2 {[%emt 0:07:29]} Kg7 {[%emt 0:00:29]} 45. Nd2 {[%emt 0:03:11]} Qe7 {[%emt 0:01:50]} 46. Nf3 1/2-1/2

[Event "Niedersachsen-ch 2020"]
[Site "Verden-Aller"]
[Date "2020.01.05"]
[Round "7.9"]
[White "Webner, Dennis"]
[Black "Colbow, Collin"]
[Result "1/2-1/2"]
[ECO "A45"]
[WhiteElo "2113"]
[BlackElo "2098"]
[Annotator "NA"]
[PlyCount "44"]
[EventDate "2020.01.02"]
[EventType "swiss"]
[EventCountry "GER"]
[SourceTitle "playchess.com"]
[Source "ChessBase"]
[SourceQuality "1"]
[TimeControl "40/5400+30:1800+30"]

1. d4 {[%emt 0:00:00]} Nf6 {[%emt 0:00:00]} 2. Nc3 {[%emt 0:00:00]} d5 {[%emt 0:00:00]} 3. Bf4 {[%emt 0:00:00]} e6 {[%emt 0:00:38]} 4. e3 {[%emt 0:00:00]} Bb4 {[%emt 0:02:50]} 5. Bd3 {[%emt 0:01:13]} c5 {[%emt 0:03:42]} 6. dxc5 {[%emt 0:01:42]} Nbd7 $11 {[%emt 0:03:26]} 7. Nge2 {[%emt 0:22:22]} Nxc5 {[%emt 0:10:03]} 8. O-O {[%emt 0:00:43]} O-O {[%emt 0:03:46]} 9. a3 {[%emt 0:04:42]} Nxd3 {[%emt 0:01:19]} 10. cxd3 {[%emt 0:00:24]} Be7 {[%emt 0:03:10]} 11. Qb3 {[%emt 0:04:17]} Nd7 {[%emt 0:09:12]} 12. d4 {[%emt 0:01:34]} Nb6 {[%emt 0:04:45]} 13. Nb5 {[%emt 0:05:58]} Bd7 {[%emt 0:08:15]} 14. Bc7 {[%emt 0:01:59]} Qc8 {[%emt 0:01:07]} 15. Bxb6 {[%emt 0:01:34]} axb6 {[%emt 0:02:34]} 16. Rac1 {[%emt 0:01:09]} Bc6 {[%emt 0:01:08]} 17. Nec3 {[%emt 0:09:41]} Qd7 {[%emt 0:02:31]} 18. a4 {[%emt 0:03:15]} Ra5 {[%emt 0:03:16]} 19. Ra1 {[%emt 0:02:28]} Rfa8 {[%emt 0:02:01]} 20. Rfc1 h6 {[%emt 0:19:05]} 21. f3 {[%emt 0:05:21]} Qd8 {[%emt 0:01:29]} 22. Kf2 {[%emt 0:06:12]} Kf8 {[%emt 0:04:43]} 1/2-1/2

[Event "Niedersachsen-ch 2020"]
[Site "Verden-Aller"]
[Date "2020.01.05"]
[Round "7.10"]
[White "Meyer, Heinz-Dieter"]
[Black "Kiesel, Lucas"]
[Result "1/2-1/2"]
[ECO "A13"]
[WhiteElo "2102"]
[BlackElo "1989"]
[Annotator "NA"]
[PlyCount "60"]
[EventDate "2020.01.02"]
[EventType "swiss"]
[EventCountry "GER"]
[SourceTitle "playchess.com"]
[Source "ChessBase"]
[SourceQuality "1"]
[TimeControl "40/5400+30:1800+30"]

1. c4 {[%emt 0:00:00]} e6 {[%emt 0:00:00]} 2. Nf3 {[%emt 0:00:00]} f5 {[%emt 0:00:00]} 3. g3 {[%emt 0:01:04]} Nf6 {[%emt 0:00:26]} 4. Bg2 {[%emt 0:00:07]} Be7 {[%emt 0:02:54]} 5. O-O {[%emt 0:02:50]} O-O {[%emt 0:00:02]} 6. b3 {[%emt 0:02:02]} c6 {[%emt 0:03:04]} 7. Bb2 {[%emt 0:00:35]} d5 $14 {[%emt 0:00:59]} 8. e3 {[%emt 0:00:21]} Nbd7 {[%emt 0:01:39]} 9. cxd5 {[%emt 0:01:59]} exd5 {[%emt 0:01:58]} 10. Nc3 {[%emt 0:00:14]} Ne4 {[%emt 0:03:57]} 11. d3 {[%emt 0:04:04]} Nd6 {[%emt 0:05:59]} 12. Ne2 {[%emt 0:00:23]} Bf6 {[%emt 0:00:29]} 13. Qc2 {[%emt 0:00:26]} Qe7 {[%emt 0:04:00]} 14. Rac1 {[%emt 0:00:25]} Bxb2 {[%emt 0:08:56]} 15. Qxb2 {[%emt 0:01:50]} Nf7 {[%emt 0:00:14]} 16. d4 {[%emt 0:15:03]} Nf6 {[%emt 0:00:47]} 17. b4 {[%emt 0:00:38]} Bd7 {[%emt 0:00:41]} 18. Nf4 {[%emt 0:00:16]} a6 {[%emt 0:08:19]} 19. Nd3 {[%emt 0:00:44]} Ne4 {[%emt 0:00:33]} 20. Nde5 {[%emt 0:03:11]} Ned6 {[%emt 0:01:16]} 21. a4 {[%emt 0:03:52]} Nxe5 {[%emt 0:00:34]} 22. Nxe5 {[%emt 0:00:15]} Be6 {[%emt 0:02:28]} 23. Rfe1 {[%emt 0:18:08]} g6 {[%emt 0:00:39]} 24. Bf1 {[%emt 0:00:18]} Rfc8 {[%emt 0:11:50]} 25. Rc5 {[%emt 0:03:59]} Qd8 {[%emt 0:10:57]} 26. Rec1 {[%emt 0:08:02]} Qb6 27. Qa3 {[%emt 0:07:50]} Kg7 {[%emt 0:08:05]} 28. Bd3 {[%emt 0:06:19]} Kg8 {[%emt 0:00:48]} 29. Bf1 {[%emt 0:01:17]} Kg7 {[%emt 0:00:05]} 30. Bd3 {[%emt 0:00:12]} Kg8 {[%emt 0:01:36]} 1/2-1/2

[Event "Niedersachsen-ch 2020"]
[Site "Verden-Aller"]
[Date "2020.01.05"]
[Round "7.11"]
[White "Balazs, Kata"]
[Black "Santos, Jose"]
[Result "1/2-1/2"]
[ECO "A45"]
[WhiteElo "1624"]
[BlackElo "1771"]
[Annotator "NA"]
[PlyCount "81"]
[EventDate "2020.01.02"]
[EventType "swiss"]
[EventCountry "GER"]
[SourceTitle "playchess.com"]
[Source "ChessBase"]
[SourceQuality "1"]
[TimeControl "40/5400+30:1800+30"]

1. d4 {[%emt 0:00:00]} Nf6 {[%emt 0:00:00]} 2. Nc3 {[%emt 0:00:00]} d5 {[%emt 0:00:00]} 3. Bf4 {[%emt 0:00:17]} a6 {[%emt 0:00:20]} 4. e3 {[%emt 0:02:04]} e6 {[%emt 0:00:34]} 5. Bd3 {[%emt 0:04:51]} c5 {[%emt 0:03:22]} 6. Nf3 {[%emt 0:07:15]} Nc6 {[%emt 0:01:42]} 7. O-O {[%emt 0:04:35]} cxd4 {[%emt 0:04:36]} 8. exd4 {[%emt 0:01:49]} Bd6 {[%emt 0:01:56]} 9. Qd2 {[%emt 0:05:44]} Qc7 {[%emt 0:08:18]} 10. Bxd6 {[%emt 0:03:05]} Qxd6 {[%emt 0:00:04]} 11. Rfe1 {[%emt 0:02:43]} O-O {[%emt 0:06:51]} 12. a3 {[%emt 0:06:46]} b5 {[%emt 0:04:09]} 13. Qg5 {[%emt 0:11:04]} Ne7 {[%emt 0:28:10]} 14. Ne5 {[%emt 0:07:36]} Nf5 {[%emt 0:02:22]} 15. Ng4 {[%emt 0:04:59]} Nxg4 {[%emt 0:05:36]} 16. Qxg4 {[%emt 0:00:06]} Ne7 {[%emt 0:01:55]} 17. Re3 {[%emt 0:08:05]} f5 {[%emt 0:03:24]} 18. Qh5 {[%emt 0:03:34]} Bd7 {[%emt 0:04:02]} 19. Rh3 {[%emt 0:04:21]} h6 {[%emt 0:00:14]} 20. Rg3 {[%emt 0:01:11]} Rf6 {[%emt 0:00:38]} 21. Ne2 {[%emt 0:03:28]} Raf8 {[%emt 0:02:26]} 22. h4 {[%emt 0:04:53]} Be8 {[%emt 0:01:36]} 23. Qf3 {[%emt 0:00:15]} f4 {[%emt 0:07:00]} 24. Rh3 {[%emt 0:02:23]} Nf5 {[%emt 0:00:01]} 25. c3 {[%emt 0:00:53]} Ne7 {[%emt 0:04:27]} 26. Bc2 {[%emt 0:01:03]} Bg6 {[%emt 0:00:24]} 27. Bxg6 {[%emt 0:01:18]} Nxg6 {[%emt 0:00:01]} 28. h5 {[%emt 0:00:44]} Ne7 {[%emt 0:00:03]} 29. Re1 {[%emt 0:00:38]} Qc7 {[%emt 0:01:47]} 30. Nc1 {[%emt 0:01:22]} Qc4 {[%emt 0:01:44]} 31. Nd3 {[%emt 0:00:37]} Nc6 {[%emt 0:01:19]} 32. Rh4 {[%emt 0:01:49]} a5 {[%emt 0:00:29]} 33. Rxf4 {[%emt 0:00:46]} b4 {[%emt 0:00:26]} 34. axb4 {[%emt 0:01:33]} axb4 {[%emt 0:00:54]} 35. Rxe6 {[%emt 0:01:26]} Rxf4 {[%emt 0:00:27]} 36. Nxf4 {[%emt 0:00:09]} Nxd4 {[%emt 0:00:24]} 37. cxd4 {[%emt 0:03:15]} Qc1+ {[%emt 0:00:02]} 38. Kh2 {[%emt 0:00:03]} Qxf4+ {[%emt 0:00:42]} 39. Qg3 {[%emt 0:01:01]} Qxf2 {[%emt 0:01:37]} 40. Qxf2 {[%emt 0:01:35]} Rxf2 {[%emt 0:00:23]} 41. Re5 {[%emt 0:03:23]} 1/2-1/2